bitfinex-derivatives/quotes_ETHF0:USTF0_20250102
["timestamp","ask_amount","ask_price","bid_price","bid_amount"]
[1735829436347,0.28692,3488.5,3488.4,3.2078]
[1735829436841,2.74303741,3488.6,3488.0,3.2078]
[1735829437041,0.28696,3488.1,3488.0,3.2078]
[1735829437247,3.46023741,3489.1,3488.0,3.2078]
[1735829437445,0.71723,3488.9,3488.0,3.2078]
[1735829437856,0.28695,3488.3,3488.0,3.2078]
[1735829438047,2.74303741,3489.1,3488.0,3.2078]
[1735829438248,2.74303741,3489.1,3488.5,3.2078]
[1735829438443,1.2304,3489.2,3488.5,3.92511]
[1735829438649,2.3931,3490.0,3488.9,3.2078]
[1735829438855,1.1903,3490.0,3489.3,3.2078]
[1735829439047,8.74892362,3490.1,3489.3,3.2078]
[1735829439243,0.28681,3490.0,3489.8,0.28682]
[1735829439448,8.74892362,3490.1,3489.8,0.28681]
[1735829439449,3.4946,3490.1,3489.8,0.28681]
[1735829439749,0.2868,3490.0,3489.6,0.28683]
[1735829439943,1.2919,3490.4,3489.3,3.2078]
[1735829440147,0.2868,3490.1,3489.8,0.28682]
[1735829440449,1.2919,3490.4,3489.7,3.2078]
[1735829440649,0.28682,3489.8,3489.7,3.2078]
[1735829441049,0.28681,3489.9,3489.7,3.2078]
[1735829441243,0.2868,3490.1,3489.8,0.28681]
[1735829441448,0.28676,3490.6,3489.8,0.71705]
[1735829441643,5.6009,3490.8,3490.5,0.28675]
[1735829441644,1.47704,3490.8,3490.5,0.28675]
[1735829441850,3.2078,3491.5,3489.8,0.71705]
[1735829441851,4.01733741,3491.6,3490.7,3.2078]
[1735829442047,5.54112362,3491.7,3491.3,3.2078]
[1735829442248,2.4783,3492.0,3491.6,0.28667]
[1735829442454,5.54112362,3492.4,3491.7,3.2078]
[1735829442854,0.28664,3491.9,3491.7,3.2078]
[1735829443049,0.28664,3492.0,3491.3,3.2078]
[1735829443257,0.28664,3492.0,3491.5,0.28667]
[1735829443456,0.28664,3492.1,3491.3,3.2078]
[1735829443655,1.2743,3492.5,3491.4,0.28668]
[1735829443656,0.28666,3491.8,3491.4,0.28668]
[1735829443959,0.28667,3491.7,3491.3,3.2078]
[1735829444159,2.74303741,3492.1,3491.3,3.2078]
[1735829444356,0.28669,3491.4,3491.3,3.2078]
[1735829444752,0.28664,3492.0,3491.3,3.2078]
[1735829444959,2.74303741,3492.1,3491.3,3.49449]
[1735829445259,2.74303741,3491.6,3490.9,3.2078]
[1735829445450,0.28672,3491.0,3490.9,3.2078]
[1735829445657,2.74303741,3491.1,3490.4,3.2078]
[1735829445858,0.28682,3489.8,3489.4,0.28684]
[1735829446057,5.95083741,3490.1,3489.2,3.2078]
[1735829446377,1.427,3490.0,3489.2,3.2078]
[1735829446661,8.226,3490.0,3489.2,3.2078]
[1735829447057,0.28684,3489.6,3489.2,3.2078]
[1735829447260,0.28685,3489.5,3489.2,3.2078]
[1735829447458,1.426,3490.0,3489.2,3.2078]
[1735829447663,0.28686,3489.3,3489.2,3.2078]
[1735829447859,0.71705,3489.8,3489.2,3.2078]
[1735829448160,1.426,3490.0,3489.2,3.2078]
[1735829448161,0.28686,3489.3,3489.2,3.2078]
[1735829448364,3.2078,3489.3,3488.3,3.2078]
[1735829448660,3.2078,3488.8,3488.2,1.2901]
[1735829448861,0.71717,3489.2,3487.6,3.2078]
[1735829448862,3.2078,3488.4,3487.6,3.2078]
[1735829449367,0.28694,3488.4,3488.0,3.2078]
[1735829449663,3.2078,3488.8,3487.6,3.2078]
[1735829449860,0.71728,3488.7,3487.6,3.2078]
[1735829450060,0.71728,3488.7,3487.8,0.28698]
[1735829450262,3.2078,3488.8,3488.0,0.28696]
[1735829450464,0.28695,3488.2,3487.8,0.28697]
[1735829450665,3.2078,3488.3,3487.6,8.2078]
[1735829450866,0.28699,3487.7,3487.4,1.51031]
[1735829451062,3.2078,3488.5,3487.6,3.2078]
[1735829451263,5.8618,3488.9,3487.6,3.2078]
[1735829451462,3.2078,3488.5,3487.6,3.2078]
[1735829451962,0.28699,3487.7,3487.6,3.2078]
[1735829452763,0.28701,3487.5,3487.4,1.2233]
[1735829452959,3.46033741,3488.6,3487.0,3.2078]
[1735829452960,0.287,3487.7,3487.0,3.2078]
[1735829453158,2.74303741,3488.6,3487.0,8.2078]
[1735829453159,0.287,3487.6,3487.0,8.2078]
[1735829453357,0.28702,3487.4,3487.1,0.28703]
[1735829453659,0.28704,3487.1,3487.0,3.2078]
[1735829454162,3.2078,3487.7,3487.0,3.2078]
[1735829454363,5.95083741,3488.1,3487.0,3.2078]
[1735829454562,5.95083741,3488.1,3487.3,0.28702]
[1735829454563,0.28699,3487.8,3487.3,0.28702]
[1735829454866,5.95083741,3488.1,3487.0,8.2078]
[1735829454867,2.74303741,3488.1,3487.0,8.2078]
[1735829455164,0.28702,3487.4,3487.0,3.2078]
[1735829455363,0.28699,3487.8,3487.1,0.28704]
[1735829455557,5.95083741,3488.1,3487.0,3.2078]
[1735829456063,0.28699,3487.7,3487.0,3.2078]
[1735829456266,5.95083741,3488.1,3487.0,3.2078]
[1735829456464,0.28699,3487.7,3487.4,0.28701]
[1735829456672,0.287,3487.6,3487.3,0.28702]
[1735829456861,5.95083741,3488.1,3487.0,3.2078]
[1735829457061,2.74303741,3487.6,3487.0,3.2078]
[1735829457567,0.28707,3486.8,3486.5,3.2078]
[1735829457866,3.2078,3487.4,3486.5,3.2078]
[1735829457867,0.28707,3486.7,3486.5,3.2078]
[1735829458663,0.28707,3486.7,3486.3,0.2871]
[1735829458664,0.28709,3486.5,3486.0,3.49493]
[1735829458861,0.28708,3486.7,3486.2,0.28711]
[1735829459069,0.28709,3486.5,3486.1,0.28712]
[1735829459271,3.2078,3486.9,3486.0,3.2078]
[1735829459570,3.2078,3486.5,3485.6,3.2078]
[1735829459963,3.2078,3486.5,3485.1,3.2078]
[1735829459964,5.95083741,3486.1,3485.1,3.2078]
[1735829460468,5.95083741,3486.1,3484.7,3.2078]
[1735829460767,3.2078,3485.7,3484.8,0.28723]
[1735829460966,3.2078,3485.7,3484.7,3.2078]
[1735829461269,0.28713,3486.0,3485.6,0.28716]
[1735829461464,5.95083741,3486.1,3485.1,3.2078]
[1735829461465,0.28715,3485.9,3485.5,0.28717]
[1735829461766,3.2078,3486.1,3485.5,3.2078]
[1735829461966,3.2078,3486.5,3485.5,8.2078]
[1735829462167,3.2078,3486.5,3485.5,3.2078]
[1735829462469,5.95083741,3486.1,3484.9,3.2078]
[1735829462670,0.28717,3485.5,3485.1,0.2872]
[1735829462970,0.28721,3485.1,3484.9,3.2078]
[1735829463167,2.74303741,3485.6,3484.9,3.2078]
[1735829463468,0.28725,3484.6,3484.4,3.2078]
[1735829463666,0.28727,3484.4,3483.9,0.2873]
[1735829463874,2.74303741,3484.6,3483.7,0.28731]
[1735829464062,3.2078,3484.3,3483.4,4.4672]
[1735829464568,2.74303741,3484.6,3483.8,3.2078]
[1735829464777,0.28723,3484.9,3484.5,0.28725]
[1735829465266,0.28725,3484.6,3484.2,3.2078]
[1735829465466,3.2078,3484.8,3483.7,3.2078]
[1735829465668,3.2078,3484.8,3484.4,0.28726]
[1735829465669,0.28723,3484.8,3484.4,0.28726]
[1735829465860,0.28723,3484.8,3483.7,3.2078]
[1735829465861,0.28725,3484.6,3484.3,0.28727]
[1735829466065,0.28726,3484.5,3484.1,0.28728]
[1735829466264,0.28729,3484.1,3483.8,0.28731]
[1735829466465,2.74303741,3484.6,3483.7,3.2078]
[1735829466673,0.28728,3484.2,3483.8,0.2873]
[1735829466866,2.74303741,3484.6,3483.8,0.28731]
[1735829467062,2.74303741,3484.6,3483.7,3.2078]
[1735829467265,3.2078,3484.9,3484.1,3.2078]
[1735829467461,3.49502,3484.9,3484.6,0.28724]
[1735829467667,2.74303741,3485.1,3484.1,8.2078]
[1735829468067,1.95684,3486.0,3485.0,3.2078]
[1735829468068,2.74303741,3485.6,3485.0,3.2078]
[1735829468373,5.58848843,3487.3,3484.1,5.0]
[1735829468374,3.2078,3486.2,3485.4,3.2078]
[1735829468672,3.2078,3486.2,3486.1,0.28712]
[1735829469371,3.2078,3486.2,3486.0,0.28713]
[1735829469572,3.2078,3486.2,3485.9,0.28713]
[1735829469871,0.28712,3486.1,3485.5,0.28717]
[1735829470075,0.28715,3485.8,3485.6,0.28716]
[1735829470271,0.28717,3485.5,3485.0,3.2078]
[1735829470474,2.74303741,3485.6,3485.0,3.2078]
[1735829470675,0.2872,3485.2,3484.6,3.2078]
[1735829470970,2.74303741,3485.6,3484.6,3.2078]
[1735829471171,3.2078,3486.0,3485.0,3.2078]
[1735829471372,4.17003741,3486.6,3485.4,3.2078]
[1735829471774,0.28716,3485.6,3485.0,3.2078]
[1735829471975,2.74303741,3486.1,3485.0,3.2078]
[1735829472272,2.74303741,3485.6,3485.1,0.2872]
[1735829472473,2.74303741,3485.6,3485.0,3.2078]
[1735829472474,0.2872,3485.1,3485.0,3.2078]
[1735829472870,3.2078,3485.4,3484.6,3.2078]
[1735829473074,2.74303741,3485.1,3484.6,3.2078]
[1735829473372,3.2078,3485.4,3484.3,0.71818]
[1735829473571,3.2078,3485.4,3484.1,3.92602]
[1735829473774,3.2078,3485.4,3484.7,0.28723]
[1735829473979,0.28722,3485.0,3484.2,0.7182]
[1735829474180,0.28722,3485.0,3484.8,0.28722]
[1735829474485,0.71793,3485.5,3484.5,3.2078]
[1735829474981,5.95083741,3485.1,3484.1,3.2078]
[1735829475492,3.2078,3485.1,3485.0,0.28721]
[1735829475983,0.2872,3485.2,3485.0,0.28721]
[1735829476186,2.74303741,3485.6,3484.5,3.2078]
[1735829476379,0.28717,3485.5,3485.2,0.28719]
[1735829476584,0.28718,3485.4,3485.2,0.28719]
[1735829476780,1.2574,3485.9,3483.9,1.4365]
[1735829476781,1.3004,3486.0,3485.3,3.2078]
[1735829476985,1.3004,3486.0,3485.7,0.28715]
[1735829477182,0.28714,3485.9,3485.7,0.28715]
[1735829477487,0.28714,3485.9,3485.0,0.71804]
[1735829477488,1.3004,3486.0,3484.9,3.2078]
[1735829477692,1.3004,3486.0,3485.0,0.71804]
[1735829477894,1.3004,3486.0,3484.9,3.2078]
[1735829478289,2.74303741,3485.6,3484.9,3.2078]
[1735829478495,0.28722,3484.9,3484.7,0.28723]
[1735829478787,0.28723,3484.8,3484.1,3.2078]
[1735829478992,3.92578,3485.3,3484.1,3.2078]
[1735829479179,0.28723,3484.9,3484.7,0.28723]
[1735829479384,3.2078,3485.3,3484.2,0.7182]
[1735829479582,0.28723,3484.8,3484.6,0.28724]
[1735829479791,3.2078,3485.3,3484.1,3.2078]
[1735829479792,0.28724,3484.7,3484.1,3.2078]
[1735829479991,3.2078,3485.3,3484.1,3.2078]
[1735829480189,0.28723,3484.8,3484.6,0.28724]
[1735829480390,4.17003741,3485.6,3484.5,3.2078]
[1735829480580,0.28716,3485.7,3485.3,3.2078]
[1735829480786,2.74303741,3486.6,3485.4,0.71795]
[1735829481093,3.2078,3486.7,3485.9,3.2078]
[1735829481289,0.28709,3486.5,3486.3,0.2871]
[1735829481489,0.2871,3486.5,3486.3,0.2871]
[1735829481687,3.2078,3486.7,3486.6,0.28708]
[1735829481892,0.28709,3486.5,3486.3,0.2871]
[1735829482190,3.2078,3486.7,3486.4,0.28709]
[1735829482383,0.71763,3487.0,3485.9,3.2078]
[1735829482590,0.28712,3486.2,3486.1,0.28712]
[1735829483187,1.00471,3486.9,3486.0,0.28713]
[1735829483383,0.28712,3486.2,3486.1,0.28712]
[1735829483794,0.28712,3486.2,3485.9,3.2078]
[1735829483795,0.71765,3486.9,3485.9,3.2078]
[1735829483990,0.71765,3486.9,3486.0,0.28712]
[1735829483991,0.28713,3486.1,3486.0,0.28712]
[1735829484391,0.71765,3486.9,3485.9,3.2078]
[1735829484695,0.28709,3486.5,3486.4,0.28709]
[1735829485393,0.71767,3486.8,3485.9,3.2078]
[1735829485596,0.71769,3486.7,3486.1,0.28711]
[1735829485897,0.28713,3486.1,3486.0,0.28713]
[1735829486193,3.46074741,3486.6,3486.1,0.28712]
[1735829486194,0.28712,3486.2,3486.1,0.28712]
[1735829486386,0.28712,3486.2,3485.5,3.2078]
[1735829486591,0.28712,3486.2,3486.1,0.28712]
[1735829486795,2.74303741,3486.6,3485.5,3.92572]
[1735829486990,2.74303741,3486.1,3485.5,3.2078]
[1735829487191,0.28716,3485.6,3485.5,3.2078]
[1735829487395,0.2872,3485.3,3485.0,3.2078]
[1735829487589,0.71789,3485.7,3484.9,0.28722]
[1735829487784,0.28718,3485.4,3484.6,3.2078]
[1735829487990,2.74303741,3485.6,3484.7,0.7181]
[1735829488195,0.28717,3485.5,3485.4,0.28718]
[1735829488395,0.28717,3485.5,3485.4,0.28717]
[1735829488597,3.2078,3485.9,3485.1,0.71802]
[1735829488792,1.1875,3486.0,3485.4,3.2078]
[1735829489095,1.1875,3486.0,3485.1,0.71802]
[1735829489400,3.2078,3486.4,3485.4,3.2078]
[1735829489586,3.2078,3486.4,3485.8,3.2078]
[1735829489786,3.2078,3486.4,3486.3,0.2871]
[1735829490194,3.2078,3486.4,3485.8,3.2078]
[1735829490385,0.28708,3486.7,3486.5,0.28708]
[1735829490586,0.28708,3486.7,3486.6,0.28708]
[1735829490788,0.28709,3486.5,3486.4,0.28709]
[1735829490990,3.2078,3486.8,3486.2,3.2078]
[1735829491194,3.2078,3486.8,3486.3,0.2871]
[1735829491195,0.28709,3486.5,3486.3,0.2871]
[1735829491496,0.28707,3486.7,3486.4,0.28709]
[1735829491803,3.2078,3487.7,3486.6,3.2078]
[1735829491993,1.2688,3487.9,3487.0,3.2078]
[1735829492295,3.2078,3488.3,3487.4,3.2078]
[1735829492493,0.22626316,3488.9,3487.8,3.2078]
[1735829492494,5.7495,3488.8,3487.8,3.2078]
[1735829492692,0.28695,3488.2,3487.8,3.2078]
[1735829492998,2.74303741,3488.6,3487.8,3.2078]
[1735829493293,0.28698,3487.9,3487.6,0.28699]
[1735829493596,3.2078,3488.2,3487.4,3.2078]
[1735829493793,3.2078,3488.2,3487.4,8.2078]
[1735829494006,2.5417,3488.8,3487.8,3.2078]
[1735829494298,0.28694,3488.4,3488.0,0.28696]
[1735829494508,0.28695,3488.3,3488.0,0.28696]
[1735829494801,2.5417,3488.8,3487.8,3.2078]
[1735829495000,2.74303741,3488.6,3487.8,3.2078]
[1735829495195,0.28694,3488.3,3487.8,3.2078]
[1735829495395,0.28694,3488.3,3488.0,0.28696]
[1735829495796,2.5417,3488.8,3487.8,3.2078]
[1735829495994,3.2078,3488.9,3488.8,0.2869]
[1735829496396,0.001,3489.0,3488.8,0.2869]
[1735829496597,0.001,3489.0,3488.9,0.28689]
[1735829497101,0.2868,3490.1,3489.7,0.28682]
[1735829497304,5.58848843,3490.2,3489.9,3.2078]
[1735829497599,5.58848843,3491.2,3489.9,3.2078]
[1735829497805,5.58848843,3491.2,3490.4,3.2078]
[1735829497991,5.95083741,3491.1,3489.9,3.2078]
[1735829498195,3.2078,3490.7,3489.5,3.2078]
[1735829498401,2.74303741,3491.1,3489.5,3.2078]
[1735829498602,0.28679,3490.1,3489.7,0.28682]
[1735829498800,5.95083741,3490.6,3489.5,3.2078]
[1735829499002,0.28681,3489.9,3489.5,3.49464]
[1735829499200,5.95083741,3490.6,3489.5,3.49464]
[1735829499399,0.28683,3489.7,3489.5,3.2078]
[1735829499601,3.2078,3489.8,3489.0,3.2078]
[1735829500093,0.28689,3488.9,3488.4,3.2078]
[1735829500401,3.2078,3489.8,3488.4,3.2078]
[1735829500609,3.2078,3489.8,3488.5,0.28692]
[1735829500610,0.28689,3489.0,3488.5,0.28692]
[1735829500806,2.74303741,3489.6,3488.4,3.2078]
[1735829501107,3.2078,3489.3,3488.4,3.2078]
[1735829501306,0.28693,3488.5,3488.2,1.2961]
[1735829501508,3.2078,3489.0,3487.9,3.2078]
[1735829501706,3.2078,3488.6,3487.9,3.2078]
[1735829501899,0.28696,3488.0,3487.9,3.2078]
[1735829502103,0.28697,3487.9,3487.6,0.28699]
[1735829502403,1.292,3488.8,3487.9,0.28697]
[1735829502599,3.2078,3488.3,3487.5,3.2078]
[1735829502905,2.74303741,3488.6,3487.5,3.2078]
[1735829503106,0.28698,3487.9,3487.5,3.2078]
[1735829503311,0.28698,3487.9,3487.5,3.4948]
[1735829503504,0.287,3487.6,3487.5,3.2078]
[1735829503809,3.2078,3488.4,3487.5,3.2078]
[1735829504002,0.28696,3488.1,3487.5,3.2078]
[1735829504199,2.74303741,3488.6,3488.0,3.2078]
[1735829504505,2.74303741,3488.6,3488.0,3.49476]
[1735829504708,1.292,3488.8,3488.0,3.2078]
[1735829505008,1.292,3488.8,3487.3,1.2565]
[1735829505009,0.28688,3489.0,3488.5,0.28692]
[1735829505206,5.95083741,3489.6,3488.8,0.28689]
[1735829505509,0.2869,3488.8,3488.4,3.2078]
[1735829505709,2.74303741,3489.1,3488.4,3.2078]
[1735829505909,0.2869,3488.9,3488.6,0.28692]
[1735829506204,2.74303741,3489.1,3488.4,3.49473]
[1735829506406,2.74303741,3489.1,3488.4,3.2078]
[1735829506902,0.28692,3488.5,3488.4,3.2078]
[1735829507105,5.95083741,3489.1,3488.0,3.2078]
[1735829507705,5.95083741,3489.1,3488.5,0.28692]
[1735829507900,5.95083741,3489.1,3488.4,0.28693]
[1735829508108,0.28691,3488.7,3488.4,0.28693]
[1735829508311,5.95083741,3489.1,3488.0,3.2078]
[1735829508610,0.28689,3488.9,3488.7,0.2869]
[1735829508808,3.2078,3489.1,3488.4,3.2078]
[1735829509008,3.2078,3489.1,3488.0,3.2078]
[1735829509317,0.2869,3488.8,3488.6,0.28691]
[1735829509520,0.2869,3488.8,3488.4,3.2078]
[1735829509712,0.28691,3488.7,3488.4,0.28693]
[1735829509907,0.28688,3489.0,3488.4,0.28692]
[1735829510208,0.28692,3488.6,3488.4,0.28692]
[1735829510415,0.28688,3489.0,3488.5,0.28692]
[1735829510607,5.95083741,3489.1,3488.0,3.2078]
[1735829510809,0.71722,3489.0,3488.0,3.2078]
[1735829511005,2.74303741,3489.1,3488.4,3.2078]
[1735829511309,2.74303741,3489.1,3487.5,2.7097]
[1735829511310,5.95083741,3489.1,3488.0,3.2078]
[1735829511507,3.2078,3489.0,3488.0,3.2078]
[1735829511709,0.28693,3488.4,3488.3,0.28694]
[1735829511912,0.28692,3488.6,3488.4,0.28692]
[1735829512114,0.28692,3488.6,3488.0,3.2078]
[1735829512315,3.2078,3488.9,3488.0,3.2078]
[1735829512523,2.74303741,3489.1,3488.0,3.2078]
[1735829512709,2.74303741,3489.1,3488.4,0.28692]
[1735829512710,0.28692,3488.7,3488.4,0.28692]
[1735829512906,2.74303741,3489.1,3488.0,3.2078]
[1735829513115,0.28694,3488.4,3488.2,0.28695]
[1735829513310,3.2078,3488.9,3488.2,0.28695]
[1735829513611,0.28694,3488.4,3488.2,0.28695]
[1735829513811,0.28694,3488.4,3488.0,3.2078]
[1735829514010,0.28694,3488.4,3488.3,0.28694]
[1735829514217,3.2078,3488.9,3488.4,0.28693]
[1735829514218,0.28692,3488.5,3488.4,0.28693]
[1735829514516,2.74303741,3489.1,3488.4,0.28693]
[1735829514813,2.74303741,3489.1,3488.4,3.2078]
[1735829515009,0.28691,3488.7,3488.4,3.2078]
[1735829515210,0.28691,3488.7,3488.5,0.28692]
[1735829515415,0.2869,3488.8,3488.5,0.28692]
[1735829515614,6.8368,3489.9,3488.5,5.0]
[1735829515814,6.8368,3489.9,3489.5,0.28684]
[1735829515815,0.28684,3489.6,3489.5,0.28684]
[1735829516218,0.28685,3489.4,3489.2,3.2078]
[1735829516519,0.28685,3489.4,3489.3,0.28686]
[1735829517021,0.28686,3489.3,3489.2,3.2078]
[1735829517521,5.95083741,3489.6,3488.4,3.2078]
[1735829517921,5.95083741,3489.6,3488.6,0.28691]
[1735829518113,3.49464,3489.6,3489.5,0.28684]
[1735829518313,1.2101,3489.9,3489.2,3.2078]
[1735829518608,1.2101,3489.9,3489.8,0.28682]
[1735829518808,1.2056,3490.4,3489.6,3.2078]
[1735829519016,0.28681,3489.9,3489.7,0.28683]
[1735829519315,5.95083741,3490.6,3489.7,3.2078]
[1735829519532,2.74303741,3490.6,3490.1,0.28678]
[1735829519818,0.28678,3490.3,3490.1,0.28678]
[1735829520022,0.28679,3490.2,3489.7,3.2078]
[1735829520222,0.28678,3490.3,3490.1,0.28679]
[1735829520417,3.2078,3491.0,3490.1,3.2078]
[1735829520716,0.28675,3490.7,3490.5,0.28675]
[1735829520911,3.2078,3491.0,3490.1,3.2078]
[1735829521114,5.18823741,3491.1,3490.1,3.2078]
[1735829521311,2.4452,3491.1,3490.5,3.2078]
[1735829521608,5.18823741,3491.1,3490.5,3.2078]
[1735829521808,0.28675,3490.7,3490.5,3.2078]
[1735829522010,5.18823741,3491.1,3490.6,0.28675]
[1735829522011,0.28674,3490.8,3490.6,0.28675]
[1735829522211,5.18823741,3491.1,3490.5,3.49456]
[1735829522212,0.28674,3490.7,3490.5,3.49456]
[1735829522409,0.28674,3490.7,3490.4,0.28676]
[1735829522714,0.28674,3490.8,3490.0,3.2078]
[1735829523013,5.18823741,3491.1,3490.4,3.2078]
[1735829523219,3.2078,3491.4,3490.4,3.2078]
[1735829523610,3.2078,3491.4,3490.8,3.2078]
[1735829523814,0.28669,3491.3,3491.0,0.28671]
[1735829524010,3.2078,3491.4,3490.8,3.2078]
[1735829524516,3.2078,3491.4,3490.4,3.2078]
[1735829524823,3.2078,3491.4,3488.8,2.71759]
[1735829524824,0.28682,3489.8,3489.6,3.49463]
[1735829525114,0.28679,3490.1,3489.6,3.2078]
[1735829525318,5.95083741,3490.6,3489.2,3.2078]
[1735829525518,4.6328,3490.8,3490.0,3.2078]
[1735829525716,4.6328,3490.8,3488.9,2.5342]
[1735829525717,0.28678,3490.2,3490.1,0.28679]
[1735829525922,2.74303741,3490.6,3489.6,3.2078]
[1735829526120,0.28684,3489.6,3489.4,0.28684]
[1735829526321,5.95083741,3490.6,3489.2,3.2078]
[1735829526322,3.2078,3490.1,3489.2,3.2078]
[1735829526710,0.28685,3489.4,3489.3,0.28686]
[1735829527016,0.28686,3489.3,3489.2,3.2078]
[1735829527222,3.2078,3489.3,3488.2,3.2078]
[1735829527411,0.71718,3489.2,3488.2,3.2078]
[1735829527611,1.2924,3489.2,3488.2,3.2078]
[1735829527816,0.28691,3488.7,3488.2,3.2078]
[1735829528017,1.2924,3489.2,3488.2,3.2078]
[1735829528018,2.74303741,3489.1,3488.2,3.2078]
[1735829528216,0.28693,3488.5,3488.4,0.28693]
[1735829528418,1.2924,3489.2,3488.9,0.28689]
[1735829528419,0.28689,3489.0,3488.9,0.28689]
[1735829528615,1.2924,3489.2,3488.6,3.2078]
[1735829528820,1.2924,3489.2,3488.2,3.2078]
[1735829529223,0.28689,3488.9,3488.8,0.2869]
[1735829529425,1.2924,3489.2,3488.6,3.2078]
[1735829529616,2.5048,3489.8,3489.0,3.2078]
[1735829529926,0.28685,3489.5,3489.3,0.28685]
[1735829530123,5.95083741,3490.1,3489.0,3.2078]
[1735829530325,3.4946,3490.1,3489.9,0.2868]
[1735829530625,3.2078,3490.1,3489.2,0.71717]
[1735829530932,0.28686,3489.3,3489.0,0.28688]
[1735829531120,5.95083741,3489.4,3488.6,1.2179]
[1735829531429,0.28692,3488.6,3488.5,3.2078]
[1735829531819,0.28687,3489.1,3488.5,3.2078]
[1735829532116,2.5247,3489.3,3488.5,3.2078]
[1735829532316,0.28692,3488.6,3488.5,3.2078]
[1735829532518,2.5247,3489.3,3488.1,3.2078]
[1735829532721,0.71732,3488.5,3487.7,4.4128]
[1735829532922,3.2078,3488.6,3487.7,4.4128]
[1735829533227,2.74303741,3488.9,3488.1,3.2078]
[1735829533424,3.2078,3489.2,3488.1,3.2078]
[1735829533619,3.2078,3489.2,3488.5,3.2078]
[1735829533821,0.28689,3489.0,3488.8,0.28689]
[1735829534022,0.28688,3489.1,3489.0,0.28687]
[1735829534217,0.28688,3489.0,3488.9,3.2078]
[1735829534523,0.28692,3488.6,3488.5,3.2078]
[1735829534721,0.28692,3488.6,3488.0,3.2078]
[1735829534923,0.28696,3488.1,3488.0,3.2078]
[1735829535123,0.28696,3488.1,3488.0,3.49476]
[1735829535324,0.28698,3487.8,3487.7,1.49199]
[1735829535520,0.28698,3487.8,3487.7,1.205]
[1735829535723,0.28701,3487.5,3487.4,3.2078]
[1735829535922,5.95083741,3488.4,3487.4,3.49481]
[1735829536123,0.287,3487.6,3487.4,3.49481]
[1735829536322,0.28701,3487.5,3487.4,3.2078]
[1735829536728,3.2078,3487.8,3486.1,9.74887484]
[1735829536923,0.28705,3487.0,3486.8,0.28706]
[1735829537227,0.28705,3487.0,3486.1,6.54107484]
[1735829537228,1.2814,3487.7,3486.9,3.2078]
[1735829537528,3.2078,3487.3,3486.3,1.3019]
[1735829537825,3.2078,3487.3,3486.3,3.2078]
[1735829538022,0.71759,3487.2,3486.3,0.2871]
[1735829538232,0.71759,3487.2,3485.9,8.85511656]
[1735829538418,0.71759,3487.2,3485.9,7.56851656]
[1735829538419,0.28713,3486.1,3485.9,7.56851656]
[1735829538626,3.2078,3486.8,3485.9,3.2078]
[1735829539133,3.2078,3486.8,3485.9,3.49493]
[1735829539134,0.28711,3486.3,3485.9,3.49493]
[1735829539329,3.2078,3486.8,3485.9,3.2078]
[1735829539526,3.2078,3486.8,3486.0,0.28713]
[1735829539723,3.2078,3486.8,3485.9,3.2078]
[1735829539930,6.5625902,3486.8,3485.9,3.2078]
[1735829540328,0.28707,3486.7,3485.9,3.49493]
[1735829540525,6.5625902,3486.8,3485.9,3.2078]
[1735829541229,3.3547902,3486.8,3486.3,3.2078]
[1735829541432,3.36140464,3487.3,3486.7,3.2078]
[1735829541625,4.45785532,3487.6,3486.7,3.2078]
[1735829541626,0.28704,3487.2,3486.7,3.2078]
[1735829541831,7.66565532,3487.6,3486.7,3.2078]
[1735829542032,0.28705,3487.0,3486.7,3.49487]
[1735829542332,4.74485532,3487.6,3487.4,0.28701]
[1735829542527,3.2078,3488.2,3487.5,3.2078]
[1735829542726,3.2078,3488.2,3487.8,0.28698]
[1735829542727,0.28696,3488.1,3487.8,0.28698]
[1735829543135,0.28695,3488.2,3487.5,3.2078]
[1735829543344,4.4287,3488.7,3487.9,3.2078]
[1735829543537,0.28696,3488.0,3487.9,3.2078]
[1735829543837,3.2078,3488.3,3486.8,3.2078]
[1735829544034,0.28702,3487.4,3487.1,0.28703]
[1735829544337,3.2078,3487.4,3486.8,3.2078]
[1735829544636,0.28703,3487.3,3487.0,0.28704]
[1735829544840,5.95083741,3487.9,3487.0,0.28704]
[1735829545134,5.95083741,3487.9,3486.8,3.2078]
[1735829545337,2.4341,3488.2,3487.2,3.2078]
[1735829545533,0.28698,3487.9,3487.6,0.28699]
[1735829545730,2.74303741,3488.4,3487.3,0.71756]
[1735829545937,3.2078,3488.5,3488.0,3.2078]
[1735829546238,5.58848843,3488.8,3488.7,0.28691]
[1735829546836,5.58848843,3488.8,3488.4,3.2078]
[1735829546837,1.2175,3489.3,3488.4,3.2078]
[1735829547042,0.28692,3488.7,3488.4,3.49473]
[1735829547230,3.2078,3489.2,3488.4,3.2078]
[1735829547436,0.28688,3489.0,3488.8,0.2869]
[1735829547845,0.28689,3488.9,3488.6,0.28691]
[1735829548034,0.28689,3488.9,3487.6,3.2078]
[1735829548035,3.2078,3488.8,3487.6,3.2078]
[1735829548343,6.66817741,3488.4,3487.6,3.2078]
[1735829548645,6.66817741,3488.4,3487.6,0.287]
[1735829548836,5.95083741,3488.4,3487.1,3.2078]
[1735829549148,0.28702,3487.4,3487.1,3.49484]
[1735829549437,3.2078,3487.8,3487.1,3.2078]
[1735829549843,0.28702,3487.3,3487.1,3.49484]
[1735829550139,0.71738,3488.2,3487.1,3.49484]
[1735829550140,1.2604,3488.1,3487.8,0.28698]
[1735829550439,1.2604,3488.1,3487.3,3.2078]
[1735829550945,1.2721,3488.7,3487.7,3.2078]
[1735829551245,1.2926,3488.8,3487.7,3.2078]